bitfinex-derivatives/quotes_BTCF0:USTF0_20230901
["timestamp","ask_amount","ask_price","bid_price","bid_amount"]
[1693588114224,0.00558246,25755.0,25754.0,2.27904841]
[1693588114722,0.00558246,25755.0,25754.0,2.27516841]
[1693588115028,0.2626,25763.0,25759.0,0.3]
[1693588115215,0.2626,25763.0,25762.0,1.02988]
[1693588115216,0.30648,25763.0,25762.0,1.02988]
[1693588115522,0.04,25763.0,25762.0,1.026]
[1693588115712,0.04,25763.0,25762.0,1.08254838]
[1693588116116,0.02,25763.0,25762.0,1.08642838]
[1693588116317,0.021,25763.0,25762.0,1.13068966]
[1693588117226,0.037,25763.0,25762.0,1.13268966]
[1693588117727,0.017,25763.0,25762.0,1.13268966]
[1693588118117,0.037,25763.0,25762.0,1.13268966]
[1693588118717,0.017,25763.0,25762.0,1.13268966]
[1693588118919,0.018,25763.0,25762.0,1.43868966]
[1693588119416,0.018,25763.0,25762.0,1.42768966]
[1693588119620,0.017,25763.0,25762.0,1.43168966]
[1693588119821,0.001,25763.0,25762.0,1.42968966]
[1693588120022,0.003,25763.0,25762.0,1.42668966]
[1693588120226,0.005,25763.0,25762.0,2.55679226]
[1693588120426,0.002,25763.0,25762.0,3.54894831]
[1693588120633,0.002,25763.0,25762.0,3.52894831]
[1693588120926,0.00058224,25765.0,25763.0,0.00388]
[1693588121130,0.15358234,25770.0,25768.0,0.3]
[1693588121432,0.15358234,25770.0,25768.0,1.326]
[1693588121433,0.02,25770.0,25768.0,1.326]
[1693588121621,0.27768,25776.0,25769.0,0.09580966]
[1693588121821,0.27768,25776.0,25768.0,1.32988]
[1693588121822,0.29768,25776.0,25770.0,1.026]
[1693588122032,0.45126234,25776.0,25770.0,1.026]
[1693588122527,1.8,25770.0,25762.0,0.35]
[1693588122829,0.003,25763.0,25762.0,0.37388]
[1693588123031,0.003,25763.0,25762.0,1.48268966]
[1693588123338,0.255,25769.0,25763.0,0.00388]
[1693588123526,0.275,25769.0,25763.0,0.00388]
[1693588123832,0.295,25769.0,25763.0,0.00388]
[1693588124230,0.275,25769.0,25763.0,0.00388]
[1693588124529,0.295,25769.0,25763.0,0.00388]
[1693588124928,0.275,25769.0,25763.0,0.00388]
[1693588125123,0.295,25769.0,25763.0,0.00388]
[1693588125626,0.295,25769.0,25763.0,0.00688]
[1693588125627,0.332,25769.0,25763.0,0.00688]
[1693588126035,0.312,25769.0,25766.0,1.026]
[1693588126220,0.348,25769.0,25767.0,0.09580966]
[1693588126424,0.368,25769.0,25766.0,1.026]
[1693588126627,0.368,25769.0,25766.0,0.03926128]
[1693588126834,0.368,25769.0,25763.0,1.03388]
[1693588127032,0.368,25769.0,25764.0,1.026]
[1693588127227,0.368,25769.0,25766.0,0.003]
[1693588127534,0.368,25769.0,25767.0,0.05754838]
[1693588127732,0.42268907,25769.0,25767.0,0.001]
[1693588127929,1.374,25769.0,25767.0,0.001]
[1693588128124,1.394,25769.0,25767.0,0.001]
[1693588128531,0.07030646,25768.0,25767.0,0.001]
[1693588128833,0.09030646,25768.0,25767.0,0.001]
[1693588129033,0.02,25768.0,25767.0,0.001]
[1693588129432,0.328,25769.0,25767.0,0.09880966]
[1693588129632,0.05468907,25768.0,25767.0,0.003]
[1693588129834,0.05468907,25768.0,25763.0,0.00158215]
[1693588129835,0.00388,25764.0,25763.0,0.00158215]
[1693588130139,1.046,25764.0,25763.0,0.00158215]
[1693588130329,0.03561739,25764.0,25763.0,0.03984343]
[1693588130531,0.05561739,25764.0,25763.0,0.00058215]
[1693588130736,0.11030646,25764.0,25763.0,0.00058215]
[1693588130927,0.03961739,25764.0,25763.0,0.01258215]
[1693588131129,0.04349739,25764.0,25763.0,0.01258215]
[1693588131427,0.09818646,25764.0,25763.0,0.01258215]
[1693588131630,0.09818646,25764.0,25756.0,0.3]
[1693588131631,0.00388,25757.0,25756.0,1.326]
[1693588131831,0.00388,25760.0,25757.0,0.00388]
[1693588132024,0.00388,25760.0,25758.0,2.14523905]
[1693588132236,0.00388,25760.0,25759.0,0.09580966]
[1693588132532,0.028,25764.0,25759.0,2.56100416]
[1693588132733,0.028,25764.0,25761.0,1.02988]
[1693588132932,0.028,25764.0,25762.0,0.09580966]
[1693588133138,0.2567,25767.0,25761.0,1.026]
[1693588133336,0.2567,25767.0,25761.0,1.046]
[1693588133737,0.001,25764.0,25763.0,1.02988]
[1693588133937,0.001,25764.0,25763.0,3.19492423]
[1693588134437,0.2927,25767.0,25763.0,2.26473389]
[1693588134631,0.036,25767.0,25766.0,1.026]
[1693588134828,0.036,25767.0,25766.0,2.16490786]
[1693588135128,0.04341785,25767.0,25766.0,0.11580966]
[1693588135331,0.04341785,25767.0,25765.0,0.3]
[1693588135538,0.2709,25766.0,25765.0,0.3]
[1693588136039,0.27478,25766.0,25765.0,0.39580966]
[1693588136241,0.33300692,25766.0,25765.0,0.35654838]
[1693588136445,0.27831785,25766.0,25765.0,0.35654838]
[1693588136740,0.28219785,25766.0,25765.0,0.09580966]
[1693588137332,0.2709,25766.0,25765.0,0.09580966]
[1693588137634,0.001,25766.0,25765.0,2.56177383]
[1693588137834,0.017,25766.0,25765.0,2.56377383]
[1693588138641,0.004,25766.0,25765.0,2.56277383]
[1693588139141,0.005,25766.0,25765.0,2.56277383]
[1693588139840,0.0682,25772.0,25771.0,0.3]
[1693588140144,0.0682,25772.0,25771.0,1.44180966]
[1693588140936,0.1052,25772.0,25771.0,1.44480966]
[1693588141638,0.1052,25772.0,25771.0,2.56349207]
[1693588142245,0.1052,25772.0,25771.0,1.44480966]
[1693588142741,0.1412,25772.0,25771.0,1.44480966]
[1693588143142,0.1412,25772.0,25771.0,2.56348383]
[1693588143354,0.1412,25772.0,25771.0,4.5568851]
[1693588143542,0.036,25772.0,25771.0,4.5568851]
[1693588143742,0.00388,25778.0,25777.0,0.3]
[1693588144046,0.00388,25778.0,25777.0,1.346]
[1693588144448,0.00388,25778.0,25777.0,1.44180966]
[1693588145338,0.00388,25778.0,25777.0,1.44680966]
[1693588146440,0.001,25778.0,25777.0,1.45580966]
[1693588146639,0.001,25778.0,25777.0,1.43580966]
[1693588146844,0.00488,25778.0,25777.0,0.40980966]
[1693588147148,0.01229785,25778.0,25777.0,0.37054838]
[1693588147349,0.01129785,25778.0,25777.0,0.36154838]
[1693588147549,0.01329785,25778.0,25777.0,0.38354838]
[1693588147750,0.02029785,25778.0,25777.0,0.37854838]
[1693588147948,0.02029785,25778.0,25777.0,0.41780966]
[1693588148452,0.00588,25778.0,25777.0,0.42280966]
[1693588149043,0.00488,25778.0,25777.0,0.37054838]
[1693588149442,0.00388,25778.0,25777.0,0.36154838]
[1693588149742,0.00388,25778.0,25777.0,0.42280966]
[1693588149743,0.00588,25778.0,25777.0,0.42280966]
[1693588150153,0.00488,25778.0,25777.0,0.40980966]
[1693588150352,0.01229785,25778.0,25777.0,0.40980966]
[1693588150550,0.00488,25778.0,25777.0,0.40980966]
[1693588150751,0.01188,25778.0,25777.0,0.40480966]
[1693588151050,0.01188,25778.0,25777.0,0.36554838]
[1693588151245,0.03188,25778.0,25777.0,0.36554838]
[1693588151446,0.01929785,25778.0,25777.0,0.36554838]
[1693588152246,0.66069785,25778.0,25777.0,0.009]
[1693588152447,0.65328,25778.0,25777.0,0.009]
[1693588152644,0.66069785,25778.0,25777.0,0.009]
[1693588152850,0.73100431,25778.0,25777.0,0.009]
[1693588153245,0.64069785,25778.0,25777.0,0.009]
[1693588153447,0.00388,25777.0,25776.0,0.6214]
[1693588153647,0.01129785,25777.0,25776.0,0.6124]
[1693588153846,0.01129785,25777.0,25776.0,0.70820966]
[1693588154544,0.01129785,25777.0,25776.0,0.10080966]
[1693588155356,0.01329785,25777.0,25776.0,0.12080966]
[1693588155558,0.00588,25777.0,25776.0,0.74220966]
[1693588156356,0.01088,25777.0,25776.0,0.72320966]
[1693588156849,0.01829785,25777.0,25776.0,0.72320966]
[1693588157054,0.01829785,25777.0,25776.0,0.10180966]
[1693588157256,0.01088,25777.0,25776.0,0.10180966]
[1693588157452,0.05088,25777.0,25776.0,0.002]
[1693588157846,1.14648646,25777.0,25776.0,0.002]
[1693588158046,1.15390431,25777.0,25776.0,0.002]
[1693588158259,0.00388,25773.0,25772.0,0.07767824]
[1693588158454,0.09418646,25773.0,25772.0,0.07767824]
[1693588158650,0.03949739,25773.0,25772.0,0.11693952]
[1693588158844,0.02388,25773.0,25772.0,0.1734879]
[1693588159159,0.01129785,25773.0,25772.0,0.1734879]
[1693588159456,0.01529785,25773.0,25772.0,0.2034879]
[1693588159856,0.03091524,25773.0,25772.0,0.14693952]
[1693588160059,0.03091524,25773.0,25772.0,0.10767824]
[1693588160359,0.05091524,25773.0,25772.0,0.10767824]
[1693588160567,1.13090431,25773.0,25772.0,0.10767824]
[1693588160753,1.13290431,25773.0,25772.0,0.14467824]
[1693588161262,0.03729785,25773.0,25772.0,0.2404879]
[1693588161567,0.06129785,25773.0,25772.0,0.1784879]
[1693588162151,1.10659785,25773.0,25772.0,0.08267824]
[1693588162356,1.12159785,25773.0,25772.0,0.08367824]
[1693588162556,1.19290431,25773.0,25772.0,0.08367824]
[1693588162760,1.13821524,25773.0,25772.0,0.08367824]
[1693588162955,0.06229785,25773.0,25772.0,0.13922662]
[1693588163347,0.06229785,25773.0,25772.0,0.1784879]
[1693588163963,0.06229785,25773.0,25772.0,0.13922662]
[1693588164753,0.06229785,25773.0,25772.0,0.1784879]
[1693588165869,1.10018,25773.0,25772.0,0.005]
[1693588166050,0.00388,25768.0,25767.0,0.3]
[1693588166256,0.02388,25768.0,25767.0,0.3]
[1693588166762,0.03129785,25768.0,25767.0,0.35654838]
[1693588166963,0.03129785,25768.0,25767.0,0.05654838]
[1693588167164,0.00388,25765.0,25764.0,1.3253]
[1693588167366,0.00388,25765.0,25764.0,2.48351067]
[1693588167559,0.00388,25765.0,25764.0,2.44424939]
[1693588167764,0.01129785,25765.0,25764.0,2.54005905]
[1693588168158,0.01429785,25765.0,25764.0,2.56805905]
[1693588168659,0.01729785,25765.0,25764.0,2.60505905]
[1693588168962,0.01529785,25765.0,25764.0,2.58305905]
[1693588169466,0.00488,25765.0,25764.0,2.54605905]
[1693588169665,0.01288,25765.0,25764.0,2.54605905]
[1693588170768,1.06559785,25765.0,25764.0,0.006]
[1693588170966,1.05818,25765.0,25764.0,0.006]
[1693588171268,1.05818,25765.0,25761.0,0.0152]
[1693588171269,0.00388,25762.0,25761.0,0.0152]
[1693588171459,0.02388,25762.0,25761.0,1.19087022]
[1693588171864,0.02388,25762.0,25761.0,1.2301315]
[1693588172273,0.00529785,25762.0,25761.0,1.2301315]
[1693588172475,0.00829785,25762.0,25761.0,0.13174838]
[1693588172763,0.01229785,25762.0,25761.0,0.13174838]
[1693588173376,0.01229785,25762.0,25761.0,0.17100966]
[1693588174070,0.01229785,25762.0,25761.0,0.13174838]
[1693588174274,0.03229785,25762.0,25761.0,0.0752]
[1693588174457,1.13728692,25762.0,25761.0,0.0182]
[1693588174657,1.43780431,25762.0,25761.0,0.0202]
[1693588176471,0.00388,25756.0,25755.0,0.41584346]
[1693588176669,1.2,25760.0,25757.0,0.00706975]
[1693588176868,0.01561739,25759.0,25758.0,1.11924325]
[1693588177173,1.04091739,25759.0,25758.0,1.11924325]
[1693588177369,0.71220646,25759.0,25758.0,1.11924325]
[1693588177566,0.02141785,25759.0,25758.0,1.11924325]
[1693588178280,0.02141785,25759.0,25758.0,1.12124325]
[1693588178281,0.04341785,25759.0,25758.0,1.12124325]
[1693588178767,0.05341785,25759.0,25758.0,1.21905291]
[1693588178966,0.03141785,25759.0,25758.0,1.21705291]
[1693588179273,0.07241785,25759.0,25758.0,1.22005291]
[1693588179669,0.07241785,25759.0,25758.0,0.10080966]
[1693588181276,0.071,25759.0,25758.0,0.74270966]
[1693588181477,0.068,25759.0,25758.0,0.74270966]
[1693588181771,0.068,25759.0,25758.0,0.74370966]
[1693588182168,0.036,25759.0,25758.0,0.74070966]
[1693588182366,0.033,25759.0,25758.0,0.74470966]
[1693588183376,0.08768907,25759.0,25758.0,0.007]
[1693588183672,0.67900692,25759.0,25758.0,0.033]
[1693588183872,0.71662431,25759.0,25758.0,0.033]
[1693588184071,1.91820646,25759.0,25758.0,0.053]
[1693588184266,1.91820646,25759.0,25757.0,0.00706975]
[1693588184467,0.69220646,25758.0,25757.0,0.00706975]
[1693588184663,0.71220646,25758.0,25757.0,0.00706975]
[1693588185264,0.71362431,25758.0,25757.0,0.01006975]
[1693588185768,0.74262431,25758.0,25757.0,0.01006975]
[1693588186774,0.77962431,25758.0,25757.0,0.01006975]
[1693588187477,0.74962431,25758.0,25757.0,0.00706975]
[1693588187680,0.78662431,25758.0,25757.0,0.01006975]
[1693588189081,0.78662431,25758.0,25757.0,0.003]
[1693588189670,0.69631785,25758.0,25757.0,0.04226128]
[1693588189978,0.07441785,25758.0,25757.0,0.003]
[1693588190178,0.14472431,25758.0,25757.0,0.003]
[1693588190573,0.10872431,25758.0,25757.0,0.003]
[1693588190779,0.09003524,25758.0,25757.0,0.003]
[1693588190980,0.03741785,25758.0,25755.0,0.6219]
[1693588191185,0.073,25758.0,25757.0,0.6249]
[1693588191374,0.073,25758.0,25757.0,0.74070966]
[1693588192680,0.073,25758.0,25757.0,0.70144838]
[1693588192879,0.073,25758.0,25757.0,0.74070966]
[1693588193888,0.036,25758.0,25757.0,0.73770966]
[1693588194087,0.073,25758.0,25757.0,0.74070966]
[1693588194787,0.073,25758.0,25757.0,0.74458966]
[1693588196275,0.073,25758.0,25757.0,0.72458966]
[1693588196476,0.036,25758.0,25757.0,0.68232838]
[1693588196691,0.039,25758.0,25757.0,0.68232838]
[1693588196893,0.039,25758.0,25757.0,0.72158966]
[1693588197186,0.00641785,25758.0,25757.0,0.72158966]
[1693588197390,0.04041785,25758.0,25757.0,0.72458966]
[1693588197780,0.039,25758.0,25757.0,0.72458966]
[1693588197981,0.039,25758.0,25757.0,0.74458966]
[1693588198190,0.053,25758.0,25757.0,0.74458966]
[1693588199176,0.019,25758.0,25757.0,0.74158966]
[1693588199789,0.019,25758.0,25757.0,0.72158966]
[1693588199993,0.019,25758.0,25757.0,0.74158966]
[1693588200288,0.033,25758.0,25757.0,0.74358966]
[1693588200479,0.017,25758.0,25757.0,0.74358966]
[1693588200681,0.02,25758.0,25757.0,0.74358966]
[1693588201086,0.017,25758.0,25757.0,0.74358966]
[1693588201287,0.033,25758.0,25757.0,0.74358966]
[1693588201684,0.017,25758.0,25757.0,0.74358966]
[1693588201989,0.006,25758.0,25757.0,0.74158966]
[1693588202379,0.019,25758.0,25757.0,0.74158966]
[1693588202592,0.019,25758.0,25757.0,0.71770966]
[1693588202782,0.03741785,25758.0,25755.0,0.6219]
[1693588202987,0.2346,25757.0,25755.0,0.6219]
[1693588203193,0.30490646,25757.0,25755.0,0.67844838]
[1693588203494,0.30928907,25757.0,25755.0,0.67844838]
[1693588203884,0.31070692,25757.0,25755.0,0.6219]
[1693588204496,0.25601785,25757.0,25755.0,0.6219]
[1693588204991,0.25601785,25757.0,25751.0,0.08100271]
[1693588204992,0.63751739,25756.0,25751.0,0.08100271]
[1693588205196,0.6219,25752.0,25749.0,0.07712271]
[1693588205490,0.69220646,25751.0,25748.0,0.07712271]
[1693588205697,0.6219,25749.0,25747.0,0.07712271]
[1693588205897,0.07030646,25748.0,25746.0,0.07712271]
[1693588206093,0.02141785,25748.0,25746.0,0.07712271]
[1693588206394,0.07030646,25747.0,25745.0,0.07712271]
[1693588206591,0.02,25747.0,25745.0,0.07712271]
[1693588206981,0.63751739,25746.0,25744.0,0.07712271]
[1693588207195,0.8601,25746.0,25744.0,0.07712271]
[1693588207491,0.07030646,25745.0,25744.0,0.07712271]
[1693588207691,0.01561739,25745.0,25744.0,0.07712271]
[1693588207989,0.8601,25746.0,25744.0,0.07712271]
[1693588208296,0.8601,25746.0,25743.0,0.07712271]
[1693588208297,1.2,25745.0,25743.0,0.07712271]
[1693588208595,0.69220646,25744.0,25741.0,0.07712271]
[1693588208791,0.69220646,25744.0,25738.0,0.07712271]
[1693588208792,9.979e-05,25741.0,25738.0,0.07712271]
[1693588208988,9.979e-05,25741.0,25737.0,0.11584346]
[1693588208989,0.6219,25739.0,25737.0,0.07712271]
[1693588209189,0.07030646,25738.0,25737.0,0.07712271]
[1693588209384,0.07172431,25738.0,25735.0,0.07712271]
[1693588209582,0.07030646,25737.0,25735.0,0.07712271]
[1693588209784,0.00141785,25738.0,25734.0,0.73774346]
[1693588209785,0.00141785,25738.0,25736.0,0.07712271]
[1693588209986,0.6219,25739.0,25735.0,0.07712271]
[1693588210201,1.21561739,25738.0,25735.0,0.07712271]
[1693588210383,0.6219,25736.0,25735.0,0.07712271]
[1693588210593,0.6219,25736.0,25735.0,0.14667109]
[1693588210594,0.02141785,25736.0,25735.0,0.14667109]
[1693588210796,0.02141785,25736.0,25735.0,0.10880966]
[1693588210990,0.004,25738.0,25737.0,0.03901493]
[1693588211190,0.004,25738.0,25737.0,0.77672459]
[1693588211397,0.004,25738.0,25737.0,1.39862459]
[1693588211592,0.6249,25741.0,25738.0,0.06454838]
[1693588211799,0.6219,25739.0,25738.0,0.008]
[1693588212185,0.2332,25740.0,25738.0,0.008]
[1693588212391,1.8219,25739.0,25738.0,0.008]
[1693588212590,0.6419,25739.0,25738.0,0.008]
[1693588212899,0.71362431,25739.0,25738.0,0.008]
[1693588213289,0.62331785,25739.0,25738.0,0.10580966]
[1693588213497,0.2692,25740.0,25738.0,0.74770966]
[1693588213498,0.036,25740.0,25738.0,0.74770966]
[1693588213693,0.036,25740.0,25739.0,0.66116128]
[1693588213895,0.2371,25744.0,25739.0,0.73770966]
[1693588214094,0.23851785,25744.0,25739.0,0.6419]
[1693588214389,0.23851785,25744.0,25739.0,0.6219]
[1693588214390,0.25851785,25744.0,25739.0,0.6219]
[1693588214796,0.029,25740.0,25739.0,0.09727202]
[1693588214998,0.029,25740.0,25739.0,0.81498168]
[1693588215202,0.2371,25744.0,25739.0,0.81498168]
[1693588215397,0.89641785,25744.0,25739.0,0.69917202]
[1693588215703,0.001,25740.0,25739.0,0.6289]
[1693588216003,0.003,25740.0,25739.0,0.80198168]
[1693588216198,0.002,25740.0,25739.0,0.81498168]
[1693588216405,0.002,25740.0,25739.0,0.74470966]
[1693588216699,0.002,25740.0,25739.0,0.82190142]
[1693588216897,0.002,25740.0,25739.0,0.72470966]
[1693588217102,0.01,25740.0,25739.0,0.79590142]
[1693588217498,0.63131785,25740.0,25739.0,0.09680966]
[1693588217701,0.63131785,25740.0,25739.0,0.001]
[1693588217907,0.63131785,25740.0,25739.0,0.05754838]
[1693588218205,0.63331785,25740.0,25739.0,0.09680966]
[1693588218413,0.63331785,25740.0,25739.0,0.05754838]
[1693588218607,0.62431785,25740.0,25739.0,0.06354838]
[1693588218797,0.64031785,25740.0,25739.0,0.06354838]
[1693588219197,0.73062431,25740.0,25739.0,0.007]
[1693588219501,0.75062431,25740.0,25739.0,0.002]
[1693588220010,0.75062431,25740.0,25738.0,0.008]
[1693588220011,0.72962431,25740.0,25738.0,0.008]
[1693588220209,0.66031785,25740.0,25739.0,0.007]
[1693588220807,0.67593524,25740.0,25739.0,0.007]
[1693588221002,0.65993524,25740.0,25739.0,0.007]
[1693588221204,0.67593524,25740.0,25739.0,0.007]
[1693588221713,0.73462431,25740.0,25739.0,0.002]
[1693588222002,0.77062431,25740.0,25739.0,0.002]
[1693588222409,0.69531785,25740.0,25739.0,0.05854838]
[1693588222607,0.07341785,25740.0,25739.0,0.05854838]
[1693588223006,0.10903524,25740.0,25739.0,0.002]
[1693588223307,0.73093524,25740.0,25739.0,0.002]
[1693588223512,0.78562431,25740.0,25739.0,0.002]
[1693588224103,0.76562431,25740.0,25739.0,0.002]
[1693588224708,0.63931785,25740.0,25739.0,0.03926128]
[1693588225015,0.69531785,25740.0,25739.0,0.002]
[1693588225310,0.76562431,25740.0,25739.0,0.002]
[1693588225606,1.98562431,25740.0,25739.0,0.002]
[1693588226013,0.07030646,25739.0,25738.0,0.008]
[1693588226214,0.94232431,25739.0,25738.0,0.008]
[1693588226400,1.29220646,25738.0,25737.0,0.03901493]
[1693588226605,1.2,25736.0,25731.0,0.3]
[1693588226809,0.6219,25732.0,25731.0,0.3]
[1693588227001,0.69220646,25732.0,25731.0,0.3]
[1693588227207,0.69362431,25732.0,25730.0,0.07707783]
[1693588227410,0.62331785,25732.0,25729.0,0.07707783]
[1693588227612,0.07030646,25731.0,25729.0,0.07707783]
[1693588227805,0.024,25732.0,25731.0,0.09723332]
[1693588228006,0.71620646,25732.0,25731.0,0.09723332]
[1693588228202,0.71762431,25732.0,25731.0,0.09723332]
[1693588228610,0.72162431,25732.0,25731.0,0.09723332]
[1693588229317,0.71762431,25732.0,25731.0,0.09723332]
[1693588229509,0.72062431,25732.0,25731.0,0.11523332]
[1693588230603,0.71962431,25732.0,25731.0,0.11523332]
[1693588230808,0.71962431,25732.0,25724.0,0.00012]
[1693588230809,1.2,25725.0,25724.0,0.00012]
[1693588231012,1.91362431,25725.0,25724.0,0.00012]
[1693588231222,1.2,25725.0,25724.0,0.05666838]
[1693588231407,0.6219,25730.0,25724.0,0.05666838]
[1693588231717,0.003,25732.0,25729.0,0.6219]
[1693588231914,0.003,25732.0,25730.0,0.09580966]
[1693588232115,0.003,25732.0,25730.0,0.02]
[1693588232318,1.2,25736.0,25731.0,0.09580966]
[1693588232519,0.6219,25732.0,25730.0,0.02]
[1693588232818,0.62331785,25732.0,25730.0,0.05926128]
[1693588233019,0.6219,25734.0,25730.0,0.6419]
[1693588233221,0.07030646,25733.0,25730.0,0.6419]
[1693588233514,0.6219,25732.0,25731.0,0.05654838]
[1693588233714,0.6219,25735.0,25731.0,0.02]
[1693588233924,0.6219,25735.0,25726.0,0.3]
[1693588233925,0.004,25732.0,25726.0,0.3]
[1693588234118,0.004,25732.0,25731.0,0.6219]
[1693588234416,0.036,25736.0,25734.0,0.3]
[1693588234608,0.036,25736.0,25735.0,0.6219]
[1693588234807,0.036,25736.0,25735.0,0.6419]
[1693588235017,0.6219,25741.0,25735.0,0.73770966]
[1693588235219,0.62331785,25741.0,25735.0,0.6419]
[1693588235716,0.036,25736.0,25735.0,0.6419]
[1693588235918,0.036,25736.0,25735.0,0.11580966]
[1693588236118,0.036,25736.0,25735.0,0.02]
[1693588236408,0.03741785,25736.0,25731.0,0.3]
[1693588236721,0.6219,25733.0,25731.0,0.32]
[1693588236921,0.6219,25734.0,25732.0,0.09580966]
[1693588237220,0.6219,25734.0,25732.0,0.05926128]
[1693588237415,0.6219,25730.0,25724.0,0.00401]
[1693588237630,0.6219,25730.0,25724.0,0.02401]
[1693588237631,0.6219,25725.0,25724.0,0.02401]
[1693588237812,0.6219,25731.0,25725.0,0.0778045]
[1693588238122,0.6219,25731.0,25726.0,0.6219]
[1693588238306,0.6219,25731.0,25726.0,0.6419]
[1693588238514,0.62331785,25731.0,25726.0,0.6419]
[1693588239022,0.6219,25727.0,25725.0,0.0778045]
[1693588239213,0.6219,25726.0,25725.0,0.0978045]
[1693588239522,0.6219,25726.0,25725.0,0.15435288]
[1693588239715,0.63751739,25726.0,25725.0,0.15435288]
[1693588240017,0.6219,25726.0,25725.0,0.0978045]
[1693588240222,0.63751739,25726.0,25725.0,0.0978045]
[1693588240422,0.69220646,25726.0,25725.0,0.0978045]
[1693588240622,0.69620646,25726.0,25725.0,0.0978045]
[1693588240927,0.69762431,25726.0,25725.0,0.0778045]
[1693588241115,0.70162431,25726.0,25725.0,0.0798045]
[1693588241515,0.72162431,25726.0,25725.0,0.0798045]
[1693588242917,0.008,25726.0,25725.0,0.0798045]
[1693588243123,0.6499,25726.0,25725.0,0.0798045]
[1693588243420,0.72020646,25726.0,25725.0,0.0798045]
[1693588243612,0.70020646,25726.0,25725.0,0.0798045]
[1693588243812,0.64551739,25726.0,25725.0,0.0798045]
[1693588244015,0.008,25726.0,25725.0,0.76096578]
[1693588244210,0.008,25726.0,25725.0,0.81751416]
[1693588244733,0.8489,25728.0,25726.0,0.016]
[1693588245220,0.85031785,25728.0,25726.0,0.05526128]
[1693588245422,0.85031785,25728.0,25727.0,0.05654838]
[1693588245724,0.86451739,25728.0,25726.0,0.016]
[1693588246217,0.69220646,25727.0,25726.0,0.016]
[1693588246420,0.71220646,25727.0,25726.0,0.016]
[1693588246615,0.71220646,25727.0,25726.0,0.02]
[1693588246616,1.31220646,25727.0,25726.0,0.02]
[1693588247020,1.31220646,25727.0,25726.0,0.026]
[1693588247216,0.69172431,25727.0,25726.0,0.026]
[1693588247420,1.71780646,25727.0,25726.0,0.026]
[1693588247612,0.3,25726.0,25725.0,0.0778045]
[1693588247814,0.6,25721.0,25715.0,0.00389]
[1693588248126,0.6,25721.0,25716.0,0.24324479]
[1693588248127,1.0275,25719.0,25716.0,0.24324479]
[1693588248456,1.8,25711.0,25707.0,0.07709443]
[1693588248617,0.02,25711.0,25708.0,0.33911351]
[1693588248817,0.6,25716.0,25708.0,0.33911351]
[1693588248818,0.01561739,25710.0,25709.0,0.24330385]
[1693588249023,0.02389,25710.0,25709.0,0.24330385]
[1693588249324,1.09780646,25710.0,25709.0,0.24330385]
[1693588249720,1.0475,25710.0,25706.0,0.24330385]
[1693588249913,1.0275,25707.0,25706.0,0.24330385]
[1693588250123,2.2275,25717.0,25708.0,0.3]
[1693588250323,0.00389,25714.0,25710.0,1.0275]
[1693588250526,1.03139,25711.0,25708.0,0.3]
[1693588250723,1.0275,25711.0,25708.0,0.3]
[1693588250922,1.0273336,25711.0,25709.0,0.24328171]
[1693588251117,0.01561739,25710.0,25709.0,0.24328171]
[1693588251318,0.004,25714.0,25709.0,1.33004299]
[1693588251613,0.004,25714.0,25712.0,0.3]
[1693588251818,0.004,25714.0,25713.0,1.12330966]
[1693588252022,0.004,25714.0,25713.0,1.38656528]
[1693588252324,1.2639,25720.0,25713.0,1.38656528]
[1693588252522,1.0275,25720.0,25715.0,0.3]
[1693588252727,0.00389,25722.0,25717.0,1.0275]
[1693588252920,0.00389,25722.0,25717.0,1.0475]
[1693588253433,0.00389,25721.0,25717.0,0.02]
[1693588253629,0.00389,25719.0,25717.0,0.02]
[1693588253822,0.01561739,25720.0,25717.0,0.02]
[1693588254022,1.0275,25721.0,25717.0,0.02]
[1693588254219,1.03139,25721.0,25719.0,0.00387]
[1693588254422,1.0315,25721.0,25719.0,0.00387]
[1693588254718,0.004,25720.0,25719.0,0.37654838]
[1693588254934,0.004,25720.0,25719.0,1.40404838]
[1693588255324,0.008,25721.0,25719.0,1.44730966]
[1693588255630,0.008,25721.0,25720.0,0.05654838]
[1693588255828,0.004,25721.0,25720.0,0.11580966]
[1693588256927,1.431,25729.0,25720.0,0.11580966]
[1693588256928,0.231,25729.0,25720.0,0.11580966]
[1693588257226,0.251,25729.0,25724.0,0.00387]
[1693588257934,0.231,25729.0,25724.0,0.02387]
[1693588258227,0.251,25729.0,25724.0,0.02387]
[1693588258426,0.254,25729.0,25724.0,0.02387]
[1693588258932,0.254,25729.0,25724.0,0.00387]
[1693588260323,0.257,25729.0,25724.0,0.00787]
[1693588261027,0.00389,25727.0,25724.0,0.00787]
[1693588261234,0.237,25729.0,25725.0,0.03926128]
[1693588261421,0.07030646,25728.0,25724.0,0.00787]
[1693588261627,0.02,25728.0,25724.0,0.00787]
[1693588261827,0.02,25728.0,25725.0,0.09580966]
[1693588262029,0.01561739,25727.0,25724.0,0.00787]
[1693588262239,0.02,25728.0,25725.0,0.03926128]
[1693588262431,0.006,25729.0,25728.0,0.3]
[1693588262732,0.006,25729.0,25728.0,1.3475]
[1693588262928,0.006,25729.0,25728.0,1.44330966]
[1693588263229,0.0639,25731.0,25728.0,1.44330966]
[1693588263430,0.0639,25731.0,25729.0,0.09580966]
[1693588263736,0.003,25729.0,25728.0,1.3555]
[1693588263939,0.007,25729.0,25728.0,1.48630966]
[1693588264238,0.004,25729.0,25728.0,0.43080966]
[1693588264423,0.00789,25729.0,25728.0,0.063]
[1693588264627,0.02,25729.0,25728.0,0.028]
[1693588264831,1.0275,25730.0,25728.0,0.028]
[1693588265027,0.07419646,25729.0,25728.0,0.028]
[1693588265428,0.03561739,25729.0,25728.0,0.028]
[1693588265631,0.0709,25731.0,25728.0,0.10454838]
[1693588265838,0.0679,25731.0,25728.0,1.0275]
[1693588266135,0.003,25729.0,25728.0,1.0555]